bitfinex/quotes_SOLUSD_20240814
["timestamp","ask_amount","ask_price","bid_price","bid_amount"]
[1723635421955,20.0,147.99,147.95,45.0]
[1723635422283,6.6151,148.04,147.96,12.3]
[1723635422465,20.0,148.03,147.97,45.0]
[1723635422769,20.0,148.03,147.98,0.98806843]
[1723635424464,20.0,148.03,147.97,45.0]
[1723635426367,20.0,148.03,147.94,12.3]
[1723635426553,12.3,148.02,147.92,12.3]
[1723635426752,20.0,148.01,147.92,12.3]
[1723635427875,20.0,148.01,147.94,12.42549]
[1723635428070,20.0,148.01,147.93,45.12549]
[1723635428269,20.0,148.01,147.93,45.0]
[1723635431793,18.6525,148.0,147.87,23.2644]
[1723635431976,20.0,147.99,147.92,12.3]
[1723635432661,20.0,147.99,147.94,12.3]
[1723635432855,6.3525,148.0,147.94,12.3]
[1723635433057,6.3525,148.0,147.95,45.0]
[1723635436667,6.3525,148.0,147.94,12.3]
[1723635437669,20.0,147.99,147.92,0.12549]
[1723635437870,20.0,147.99,147.92,45.37647]
[1723635438190,20.0,147.99,147.93,12.3]
[1723635438484,20.0,147.99,147.94,45.0]
[1723635439273,6.3525,148.0,147.95,12.3]
[1723635439470,6.3525,148.0,147.96,45.0]
[1723635440770,6.3525,148.0,147.95,12.3]
[1723635440982,6.3525,148.0,147.93,12.3]
[1723635441177,6.3525,148.0,147.94,45.0]
[1723635443166,6.3525,148.0,147.93,12.3]
[1723635443367,20.0,147.99,147.91,12.3]
[1723635444689,20.0,147.99,147.92,45.0]
[1723635444875,12.3,147.98,147.89,12.3]
[1723635445082,20.0,147.97,147.89,12.3]
[1723635445271,22.6796,147.96,147.89,12.3]
[1723635446291,22.6796,147.96,147.9,45.0]
[1723635447271,22.6796,147.96,147.89,12.3]
[1723635450389,22.6796,147.96,147.9,45.0]
[1723635453994,22.6796,147.96,147.91,13.65010297]
[1723635454300,22.6796,147.96,147.92,45.0]
[1723635454497,22.6796,147.96,147.93,1.34992049]
[1723635454796,22.6796,147.96,147.92,46.34992049]
[1723635454998,6.3188,147.96,147.93,13.64982923]
[1723635455199,21.6671,148.0,147.95,12.3]
[1723635455497,21.6671,148.0,147.96,1.35147947]
[1723635455682,21.6671,148.0,147.95,12.3]
[1723635456087,21.6671,148.0,147.96,1.35080479]
[1723635456690,21.6671,148.0,147.95,12.3]
[1723635457501,21.6671,148.0,147.97,12.3]
[1723635459689,21.6671,148.0,147.98,45.0]
[1723635461185,21.6671,148.0,147.95,12.3]
[1723635461384,21.6671,148.0,147.96,45.0]
[1723635464022,21.6671,148.0,147.97,12.3]
[1723635464201,21.6382,148.05,147.98,45.0]
[1723635464385,21.6382,148.05,147.99,1.29654697]
[1723635464695,20.0,148.04,147.99,1.29654697]
[1723635465316,20.0,148.04,147.98,45.0]
[1723635465698,20.0,148.04,147.99,0.76626697]
[1723635466034,21.6382,148.05,148.0,0.76580099]
[1723635466310,21.6382,148.05,148.0,45.76580099]
[1723635467395,21.6382,148.05,148.01,1.35100403]
[1723635467594,21.6382,148.05,148.01,12.3]
[1723635467789,21.6382,148.05,148.02,45.0]
[1723635469817,6.9697855,148.09,148.03,12.3]
[1723635470199,6.9697855,148.09,148.04,45.0]
[1723635470837,6.9697855,148.09,148.05,12.55098]
[1723635471115,6.9697855,148.09,148.06,45.0]
[1723635471716,6.9697855,148.09,148.05,45.0]
[1723635472611,6.9697855,148.09,148.04,45.0]
[1723635474315,6.9697855,148.09,148.05,0.12549]
[1723635476025,6.9697855,148.09,148.05,12.42549]
[1723635476199,6.9697855,148.09,148.06,45.0]
[1723635479422,6.9697855,148.09,148.07,12.3]
[1723635479423,0.8445855,148.09,148.07,12.3]
[1723635479726,0.8445855,148.09,148.08,46.33152624]
[1723635480033,6.226,148.18,148.09,0.12549]
[1723635480206,16.5798,148.2,148.16,0.12549]
[1723635480410,15.4382,148.19,148.16,45.0]
[1723635480730,16.5798,148.2,148.16,45.0]
[1723635481097,6.226,148.22,148.17,12.3]
[1723635481293,6.226,148.22,148.16,12.3]
[1723635481494,6.226,148.22,148.09,0.12549]
[1723635481733,18.526,148.22,148.13,12.3]
[1723635481906,6.226,148.22,148.14,45.0]
[1723635482416,6.226,148.22,148.14,0.12549]
[1723635482608,6.226,148.22,148.14,31.15196]
[1723635482918,20.0,148.21,148.15,45.0]
[1723635483132,20.0,148.21,148.12,30.65]
[1723635483305,20.0,148.21,148.13,45.0]
[1723635483812,20.0,148.21,148.14,30.77549]
[1723635484010,20.0,148.21,148.15,45.0]
[1723635485017,20.0,148.21,148.14,45.0]
[1723635486327,20.0,148.21,148.15,31.99737473]
[1723635486622,6.226,148.22,148.16,0.12549]
[1723635486923,6.226,148.22,148.17,30.65]
[1723635487107,17.3779855,148.24,148.19,30.65]
[1723635487308,17.3779855,148.24,148.21,30.65]
[1723635487715,17.3779855,148.24,148.19,30.65]
[1723635488017,17.3779855,148.24,148.2,45.0]
[1723635488230,6.2826,148.23,148.15,270.0]
[1723635488543,26.2826,148.23,148.16,30.65]
[1723635490324,26.2826,148.23,148.17,45.0]
[1723635492004,26.2826,148.23,148.16,45.0]
[1723635494918,6.2826,148.23,148.18,30.65]
[1723635495141,6.2826,148.23,148.19,45.0]
[1723635495450,6.2826,148.23,148.15,270.25098]
[1723635495621,6.2826,148.23,148.16,45.0]
[1723635495820,6.2826,148.23,148.17,0.12549]
[1723635496016,6.2826,148.23,148.17,0.50196]
[1723635496234,6.2826,148.23,148.17,31.15196]
[1723635496420,6.2826,148.23,148.18,45.0]
[1723635497454,6.2826,148.23,148.19,0.12549]
[1723635497841,6.2826,148.23,148.18,45.0]
[1723635498459,6.2826,148.23,148.19,0.12549]
[1723635501647,6.2826,148.23,148.18,45.0]
[1723635502864,6.2826,148.23,148.19,30.90098]
[1723635503027,6.2826,148.23,148.2,45.0]
[1723635504929,17.3779855,148.24,148.2,45.0]
[1723635505928,17.3779855,148.24,148.18,0.12549]
[1723635506124,17.3779855,148.24,148.18,45.25098]
[1723635507233,17.3779855,148.24,148.18,45.12549]
[1723635507643,17.3779855,148.24,148.2,0.12549]
[1723635507841,17.3779855,148.24,148.2,45.12549]
[1723635508850,17.3779855,148.24,148.2,45.0]
[1723635510457,17.3779855,148.24,148.17,30.90098]
[1723635510760,17.3779855,148.24,148.15,300.65]
[1723635510945,6.5813,148.23,148.15,300.65]
[1723635511532,6.5813,148.23,148.17,30.65]
[1723635512362,6.5813,148.23,148.18,45.25098]
[1723635512945,6.5813,148.23,148.18,45.0]
[1723635514243,6.5813,148.23,148.17,45.12549]
[1723635515348,6.5813,148.23,148.17,45.0]
[1723635515550,6.5813,148.23,148.16,45.12549]
[1723635516842,15.1612,148.22,148.15,270.0]
[1723635517242,6.6102,148.21,148.15,270.0]
[1723635519446,6.6102,148.21,148.15,282.26]
[1723635519758,15.1612,148.22,148.19,12.26]
[1723635519963,15.1612,148.22,148.17,30.62]
[1723635520157,15.1612,148.22,148.18,45.0]
[1723635522476,15.1612,148.22,148.19,30.62]
[1723635522771,7.5023855,148.24,148.2,45.0]
[1723635523481,0.8445855,148.24,148.21,30.62]
[1723635523768,0.8445855,148.24,148.22,45.0]
[1723635530205,0.8445855,148.24,148.19,30.62]
[1723635531604,0.8445855,148.24,148.2,45.37647]
[1723635531968,0.8445855,148.24,148.22,30.62]
[1723635532173,0.8445855,148.24,148.23,45.0]
[1723635533636,0.8445855,148.24,148.23,45.12549]
[1723635533919,6.6576,148.28,148.24,0.12549]
[1723635534072,6.6576,148.28,148.25,30.62]
[1723635534373,6.6576,148.28,148.26,45.0]
[1723635534812,6.6576,148.28,148.23,30.99647]
[1723635535105,6.6576,148.28,148.24,45.0]
[1723635536381,6.6576,148.28,148.21,30.62]
[1723635537300,6.6576,148.28,148.2,0.12549]
[1723635537301,16.2778,148.27,148.2,0.12549]
[1723635537506,16.2778,148.27,148.2,0.25098]
[1723635537709,16.2778,148.27,148.19,30.62]
[1723635538796,16.2778,148.27,148.2,45.0]
[1723635540189,16.2778,148.27,148.19,30.62]
[1723635540598,16.2778,148.27,148.17,46.2769]
[1723635541106,16.2778,148.27,148.19,30.62]
[1723635541784,16.2778,148.27,148.25,270.0]
[1723635550091,6.6576,148.28,148.25,270.0]
[1723635550809,6.6576,148.28,148.26,45.0]
[1723635551691,6.6576,148.28,148.25,270.0]
[1723635552113,16.4843,148.31,148.26,45.0]
[1723635552495,16.4843,148.31,148.25,270.0]
[1723635554592,16.4843,148.31,148.26,45.0]
[1723635555031,16.4843,148.31,148.25,270.0]
[1723635562325,16.4843,148.31,148.26,75.6]
[1723635562706,16.4843,148.31,148.26,45.0]
[1723635563305,16.4843,148.31,148.25,270.0]
[1723635568810,16.4843,148.31,148.26,75.6]
[1723635569120,6.3811,148.32,148.26,75.6]
[1723635572037,6.3811,148.32,148.27,12.23]
[1723635573016,23.1352,148.36,148.27,12.23]
[1723635573237,20.0,148.35,148.28,45.0]
[1723635573437,23.1352,148.36,148.27,12.23]
[1723635573732,23.1352,148.36,148.29,12.23]
[1723635573934,23.1352,148.36,148.3,45.0]
[1723635574322,2.60864612,148.38,148.33,12.23]
[1723635574528,0.8445855,148.39,148.33,12.23]
[1723635574839,15.75033248,148.39,148.3,45.0]
[1723635575025,13.0745855,148.39,148.3,45.0]
[1723635575218,13.0745855,148.39,148.31,12.23]
[1723635575529,13.0745855,148.39,148.32,45.0]
[1723635575933,0.8445855,148.39,148.32,45.0]
[1723635577138,13.0745855,148.39,148.32,45.0]
[1723635577719,0.8445855,148.39,148.32,45.0]
[1723635585950,0.8445855,148.39,148.31,12.23]
[1723635586122,13.0745855,148.39,148.31,12.23]
[1723635587243,13.0745855,148.39,148.32,45.0]
[1723635587446,0.8445855,148.39,148.32,45.0]
[1723635588350,0.8445855,148.39,148.33,12.23]
[1723635589243,0.8445855,148.39,148.34,45.0]
[1723635592450,0.8445855,148.39,148.37,12.23]
[1723635592655,0.8445855,148.39,148.38,45.0]
[1723635592856,0.8445855,148.39,148.38,45.37647]
[1723635593328,0.8445855,148.39,148.38,45.50196]
[1723635594031,0.8445855,148.39,148.38,12.73196]
[1723635594245,0.8445855,148.39,148.38,57.73196]
[1723635594864,0.8445855,148.53,148.4,0.12549]
[1723635595072,12.23,148.51,148.43,0.12549]
[1723635595231,12.23,148.51,148.43,45.0]
[1723635595438,22.9731,148.52,148.41,0.12549]
[1723635595729,12.23,148.51,148.42,12.23]
[1723635595934,12.23,148.51,148.43,45.50196]
[1723635596136,12.23,148.51,148.43,45.0]
[1723635596762,22.9731,148.52,148.43,45.0]
[1723635596927,12.23,148.51,148.43,45.0]
[1723635597131,22.9731,148.52,148.44,0.37647]
[1723635597327,35.2031,148.52,148.45,0.25098]
[1723635598640,35.2031,148.52,148.46,0.25098]
[1723635598857,35.2031,148.52,148.46,0.37647]
[1723635599043,35.2031,148.52,148.46,0.25098]
[1723635599561,35.2031,148.52,148.45,0.12549]
[1723635599733,35.2031,148.52,148.44,0.37647]
[1723635599933,35.2031,148.52,148.44,0.12549]
[1723635600133,12.23,148.5,148.42,12.23]
[1723635600571,12.23,148.5,148.41,12.23]
[1723635601060,12.23,148.5,148.42,1.06558274]
[1723635601239,22.9731,148.52,148.43,1.06551094]
[1723635601441,22.9731,148.52,148.43,13.29551094]
[1723635601870,22.9731,148.52,148.44,0.12549]
[1723635602043,22.9731,148.52,148.44,1.19138834]
[1723635602358,22.9731,148.52,148.44,45.12549]
[1723635602541,12.23,148.51,148.44,45.12549]
[1723635603572,12.23,148.49,148.44,45.0]
[1723635603755,12.23,148.49,148.4,0.12549]
[1723635604055,12.23,148.49,148.4,0.25098]
[1723635604253,22.9731,148.52,148.41,12.23]
[1723635604555,12.23,148.49,148.42,0.25098]
[1723635604860,12.23,148.49,148.4,0.12549]
[1723635605159,12.23,148.49,148.4,0.25098]
[1723635605958,6.1618,148.46,148.36,21.61132731]
[1723635606155,27.6287,148.45,148.36,21.61132731]
[1723635606656,12.23,148.43,148.33,12.23]
[1723635606957,15.3987,148.45,148.33,9.38132731]
[1723635607158,15.3987,148.45,148.33,21.61132731]
[1723635607362,12.23,148.43,148.34,9.38132731]
[1723635608376,12.23,148.43,148.32,18.23]
[1723635608377,12.23,148.41,148.32,18.23]
[1723635608740,12.23,148.41,148.33,9.38132731]
[1723635609250,0.25098,148.51,148.33,9.38132731]
[1723635609251,0.12549,148.5,148.33,9.38132731]
[1723635609450,0.25098,148.5,148.33,9.38132731]
[1723635609647,12.23,148.42,148.34,45.25098]
[1723635610264,12.23,148.42,148.32,18.23]
[1723635610554,12.23,148.4,148.32,6.0]
[1723635610758,12.23,148.38,148.32,6.0]
[1723635610936,12.23,148.4,148.32,6.0]
[1723635611341,12.23,148.42,148.33,12.23]
[1723635611540,12.23,148.45,148.35,12.23]
[1723635611755,20.0,148.44,148.35,12.23]
[1723635612142,43.0127,148.44,148.35,12.23]
[1723635612351,55.2427,148.44,148.35,12.23]
[1723635612547,55.2427,148.44,148.36,45.0]
[1723635612746,12.23,148.42,148.34,12.23]
[1723635613074,12.23,148.42,148.33,0.12549]
[1723635613075,12.23,148.42,148.35,45.0]
[1723635613365,12.23,148.42,148.34,45.0]
[1723635613572,12.23,148.42,148.33,12.23]
[1723635615163,12.23,148.42,148.34,45.0]
[1723635615672,12.23,148.42,148.32,18.23]
[1723635615862,20.0,148.41,148.32,18.23]
[1723635616861,20.0,148.41,148.33,45.0]
[1723635617937,20.0,148.41,148.34,12.23]
[1723635618582,23.0127,148.44,148.34,12.23]
[1723635618862,20.0,148.43,148.34,12.23]
[1723635620872,20.0,148.43,148.35,45.0]
[1723635621370,20.0,148.43,148.34,12.23]
[1723635622366,12.23,148.42,148.32,6.0]
[1723635622555,20.0,148.41,148.34,12.23]
[1723635622758,20.0,148.43,148.34,12.23]
[1723635623153,23.0127,148.44,148.36,12.23]
[1723635623365,23.0127,148.44,148.37,45.0]
[1723635626374,23.0127,148.44,148.36,12.23]
[1723635627746,23.0127,148.44,148.37,45.0]
[1723635628386,43.4367855,148.54,148.45,6.3208]
[1723635628555,14.9730853,148.73,148.52,20.43549]
[1723635628859,22.6874,148.79,148.62,0.12549]
[1723635629052,0.3445855,148.68,148.64,0.12549]
[1723635629252,0.3445855,148.68,148.64,45.50196]
[1723635629452,0.3445855,148.68,148.67,61.27549]
[1723635629763,0.8445855,148.83,148.71,0.12549]
[1723635630079,0.8445855,148.83,148.78,20.0]
[1723635630277,0.8445855,148.83,148.81,20.0]
[1723635630498,0.8445855,148.83,148.82,0.25098]
[1723635630691,0.8445855,148.83,148.82,0.12549]
[1723635630981,16.5345,148.94,148.82,61.15]
[1723635631284,16.5345,148.94,148.83,45.0]
[1723635631454,16.0345,148.94,148.83,45.0]
[1723635631667,16.0345,148.94,148.89,12.23]
[1723635631993,16.0345,148.94,148.81,37.95]
[1723635632354,16.0345,148.94,148.84,37.95]
[1723635637277,20.0,148.93,148.84,37.95]
[1723635637465,20.0,148.93,148.85,45.0]
[1723635637664,20.0,148.93,148.84,37.95]
[1723635637890,20.0,148.93,148.82,37.95]
[1723635638078,0.12549,148.92,148.82,37.95]
[1723635638467,0.12549,148.92,148.72,40.0]
[1723635638672,0.37647,148.92,148.81,37.95]
[1723635638872,0.25098,148.92,148.81,37.95]
[1723635639280,0.12549,148.91,148.81,37.95]
[1723635639476,0.25098,148.92,148.81,37.95]
[1723635639864,20.25098,148.93,148.81,37.95]
[1723635640184,20.12549,148.93,148.81,37.95]
[1723635640375,0.12549,148.93,148.83,37.95]
[1723635640575,49.2588,148.93,148.83,37.95]
[1723635641100,49.2588,148.93,148.87,37.95]
[1723635641282,49.2588,148.93,148.92,37.95]
[1723635641490,33.69210672,148.93,148.92,37.95]
[1723635641795,33.69210672,148.93,148.89,37.95]
[1723635642022,33.69210672,148.93,148.84,37.95]
[1723635642170,33.69210672,148.93,148.88,37.95]
[1723635642373,33.69210672,148.93,148.82,37.95]
[1723635642592,33.69210672,148.93,148.89,37.95]
[1723635642892,33.69210672,148.93,148.83,45.25098]
[1723635643119,33.69210672,148.93,148.84,37.95]
[1723635643292,33.69210672,148.93,148.86,37.95]
[1723635643489,33.69210672,148.93,148.87,1.18475028]
[1723635643695,20.0,148.92,148.86,37.95]
[1723635644418,20.0,148.92,148.82,37.95]
[1723635644598,20.0,148.92,148.74,0.94090002]
[1723635644927,20.0,148.92,148.81,37.95]
[1723635645096,20.0,148.92,148.75,38.74668686]
[1723635645097,20.0,148.92,148.83,37.95]
[1723635645300,33.69210672,148.93,148.85,37.95]
[1723635645491,33.69210672,148.93,148.87,37.95]
[1723635645690,33.69210672,148.93,148.78,20.0]
[1723635646037,33.69210672,148.93,148.87,37.95]
[1723635646317,33.69210672,148.93,148.85,37.95]
[1723635646618,33.69210672,148.93,148.83,37.95]
[1723635647006,20.0,148.92,148.83,37.95]
[1723635647399,33.69210672,148.93,148.83,37.95]
[1723635647902,20.0,148.92,148.85,37.95]
[1723635649228,20.0,148.92,148.86,0.87493977]
[1723635649517,33.69210672,148.93,148.86,0.87493977]
[1723635649691,33.69210672,148.93,148.89,37.95]
[1723635650111,33.69210672,148.93,148.81,0.12549]
[1723635650318,33.69210672,148.93,148.71,20.0]
[1723635650319,37.95,148.9,148.71,20.0]
[1723635650613,37.95,148.88,148.75,37.95]
[1723635650912,57.95,148.88,148.73,37.95]
[1723635651115,0.12549,148.86,148.73,37.95]
[1723635651498,0.12549,148.86,148.75,37.95]
[1723635651694,0.50196,148.86,148.75,37.95]
[1723635652014,20.0,148.87,148.75,37.95]
[1723635652198,20.0,148.87,148.77,37.95]
[1723635652401,20.12549,148.89,148.75,37.95]
[1723635652717,0.12549,148.87,148.75,37.95]
[1723635653311,20.12549,148.87,148.75,37.95]
[1723635654110,0.37647,148.88,148.77,37.95]
[1723635654318,0.12549,148.88,148.77,37.95]
[1723635655127,0.12549,148.89,148.75,37.95]
[1723635655325,20.37647,148.89,148.75,37.95]
[1723635655500,0.12549,148.88,148.75,37.95]
[1723635656529,0.12549,148.88,148.77,37.95]
[1723635656898,20.25098,148.89,148.77,37.95]
[1723635657103,20.12549,148.89,148.77,37.95]
[1723635657420,0.12549,148.9,148.77,37.95]
[1723635657627,0.25098,148.9,148.77,37.95]
[1723635658122,38.20098,148.9,148.77,37.95]
[1723635658321,0.12549,148.88,148.77,37.95]
[1723635658617,0.25098,148.88,148.77,37.95]
[1723635658798,0.12549,148.87,148.77,37.95]
[1723635659504,0.25098,148.88,148.77,37.95]
[1723635660930,12.58896925,148.89,148.77,37.95]
[1723635661280,0.37647,148.88,148.77,37.95]
[1723635662216,65.0,148.91,148.79,37.95]
[1723635662403,42.6065,148.92,148.81,37.95]
[1723635662404,22.6065,148.92,148.81,37.95]
[1723635662727,22.6065,148.92,148.89,37.95]
[1723635664097,6.0283,148.92,148.89,37.95]
[1723635664299,23.5827855,148.98,148.91,37.95]
[1723635664927,23.5827855,148.98,148.92,37.95]
[1723635665715,23.5827855,148.98,148.94,37.95]
[1723635665916,23.5827855,148.98,148.92,37.95]
[1723635666259,23.5827855,148.98,148.94,37.95]
[1723635666410,23.5827855,148.98,148.92,37.95]
[1723635666817,23.5827855,148.98,148.94,37.95]
[1723635667227,23.5827855,148.98,148.92,37.95]
[1723635667832,7.1544855,148.98,148.96,37.95]
[1723635668747,6.5615,149.04,148.96,75.9]
[1723635668922,6.5615,149.04,149.01,37.95]
[1723635669236,6.5615,149.04,148.99,37.95]
[1723635669429,6.5615,149.04,148.9,20.12549]
[1723635669430,6.5615,149.04,148.96,37.95]
[1723635669756,6.0615,149.04,148.9,0.12549]
[1723635669964,6.0615,149.04,148.92,37.95]
[1723635670321,6.0615,149.04,148.94,37.95]
[1723635671023,6.0615,149.04,148.96,37.95]
[1723635671223,16.0819,149.12,149.0,37.95]
[1723635671451,16.0819,149.12,148.98,37.95]
[1723635671617,16.0819,149.12,148.97,45.0]
[1723635671618,37.95,149.11,148.97,45.0]
[1723635671813,37.95,149.11,148.96,37.95]
[1723635672115,37.95,149.11,148.98,37.95]
[1723635672441,37.95,149.11,148.94,37.95]
[1723635672442,37.95,149.09,148.94,37.95]
[1723635672645,37.95,149.07,148.94,37.95]
[1723635672947,16.0819,149.12,148.94,37.95]
[1723635672948,6.509,149.06,148.94,37.95]
[1723635673945,6.509,149.06,148.9,37.95]
[1723635673946,37.95,149.03,148.9,37.95]
[1723635674139,37.95,149.01,148.88,37.95]
[1723635674847,38.07549,149.03,148.9,37.95]
[1723635675022,15.2448,149.04,148.9,37.95]
[1723635676046,0.12549,149.0,148.88,37.95]
[1723635676247,0.50196,149.0,148.88,37.95]
[1723635676825,6.1156,149.02,148.88,37.95]
[1723635677156,6.1156,149.02,148.9,37.95]
[1723635677443,6.1156,149.02,148.92,37.95]
[1723635678347,6.1156,149.02,148.94,37.95]
[1723635678549,6.1156,149.02,148.96,37.95]
[1723635679341,6.1156,149.02,148.94,37.95]
[1723635680272,6.1156,149.02,148.92,37.95]
[1723635680469,6.1156,149.02,148.9,37.95]
[1723635680662,0.12549,149.01,148.9,37.95]
[1723635680842,6.1156,149.02,148.9,37.95]
[1723635681337,0.12549,149.01,148.9,37.95]
[1723635681534,0.12549,149.01,148.87,37.95]
[1723635681739,0.50196,149.01,148.87,37.95]
[1723635682041,0.50196,149.01,148.82,44.10157182]
[1723635682042,0.50196,149.01,148.89,37.95]
[1723635683062,0.00196,149.01,148.89,37.95]
[1723635683267,6.1156,149.02,148.91,37.95]
[1723635683437,6.1156,149.02,148.93,37.95]
[1723635686456,6.1156,149.02,148.91,37.95]
[1723635686843,6.1156,149.02,148.91,37.45]
[1723635687155,0.25098,149.01,148.89,37.95]
[1723635687660,0.25098,149.01,148.86,7.01641902]
[1723635687661,6.1254,148.97,148.86,7.01641902]
[1723635688171,37.95,148.96,148.86,7.01641902]
[1723635688454,38.07549,148.94,148.86,7.01641902]
[1723635688761,38.07549,148.92,148.78,37.95]
[1723635688937,38.07549,148.92,148.82,7.02308872]
[1723635689250,6.4059,148.88,148.76,37.95]
[1723635689955,6.4059,148.88,148.75,45.56]
[1723635690154,6.4059,148.88,148.77,7.02399623]
[1723635691948,45.68549,148.87,148.77,7.02399623]
[1723635692171,21.9987,148.84,148.68,46.7296614]
[1723635692467,0.37647,148.83,148.68,46.7296614]
[1723635692670,45.37647,148.83,148.69,1.33549034]
[1723635692870,67.5587,148.84,148.71,45.56]
[1723635693070,21.9987,148.84,148.72,1.33522094]
[1723635693248,45.50196,148.83,148.71,45.56]
[1723635693436,45.50196,148.83,148.68,45.56]
[1723635694063,21.9987,148.84,148.73,45.56]
[1723635694265,21.9987,148.84,148.76,45.56]
[1723635694473,21.9987,148.84,148.75,45.56]
[1723635694474,21.9987,148.84,148.79,45.56]
[1723635696161,21.9987,148.84,148.75,45.56]
[1723635699355,21.9987,148.84,148.81,45.56]
[1723635699667,22.7892,148.89,148.81,45.56]
[1723635699850,22.7892,148.89,148.84,45.56]
[1723635700768,22.7892,148.89,148.87,45.56]
[1723635700967,22.2113,149.0,148.87,45.56]
[1723635701170,22.2113,149.0,148.9,45.56]
[1723635701347,20.0,148.99,148.87,45.56]
[1723635701676,22.2113,149.0,148.87,45.56]
[1723635701968,22.2113,149.0,148.9,45.56]
[1723635703259,0.12549,148.99,148.9,45.56]
[1723635703473,22.2113,149.0,148.9,45.56]
[1723635704174,0.12549,148.99,148.9,45.56]
[1723635704576,0.25098,148.99,148.9,45.56]
[1723635704962,0.12549,148.98,148.87,45.56]
[1723635705270,20.37647,148.98,148.87,45.56]
[1723635705658,0.12549,148.97,148.87,45.56]
[1723635705970,0.25098,148.98,148.87,45.56]
[1723635706290,0.12549,148.99,148.87,45.56]
[1723635706570,0.12549,148.99,148.9,45.56]
[1723635706571,0.37647,148.99,148.9,45.56]
[1723635706752,0.12549,148.99,148.9,45.56]
[1723635706950,45.37647,148.99,148.87,45.56]
[1723635707355,0.12549,148.97,148.87,45.56]
[1723635707562,15.4607,148.95,148.84,45.56]
[1723635707950,0.12549,148.94,148.84,45.56]
[1723635708159,45.50196,148.94,148.81,45.56]
[1723635709558,0.50196,148.94,148.81,45.56]
[1723635709766,45.56,149.03,148.76,7.01944696]
[1723635709767,22.9899,149.0,148.93,45.56]
[1723635709957,22.9899,149.0,148.89,45.56]
[1723635709958,12.10851874,149.0,148.97,45.56]
[1723635710162,6.4456,149.05,148.96,45.56]
[1723635710470,6.4456,149.05,148.93,11.19486879]
[1723635710471,6.4456,149.05,148.84,0.12549]
[1723635710674,6.4456,149.05,148.92,45.56]
[1723635710675,26.4456,149.05,148.92,45.56]
[1723635711482,20.0,149.03,148.92,45.56]
[1723635711655,6.4456,149.02,148.89,45.56]
[1723635711863,6.4456,149.02,148.93,45.56]
[1723635712663,6.4456,149.02,148.82,45.56]
[1723635712664,20.0,148.93,148.76,7.01944696]
[1723635712977,16.0468,148.92,148.79,45.56]
[1723635713394,45.50196,148.91,148.79,45.56]
[1723635715476,0.25098,148.91,148.79,45.56]
[1723635715683,0.25098,148.9,148.79,45.56]
[1723635715887,0.25098,148.89,148.79,45.56]
[1723635717086,0.12549,148.89,148.79,45.56]
[1723635717283,0.25098,148.89,148.79,45.56]
[1723635717867,6.4493,148.88,148.79,45.56]